[Event "European Online Club-ch-G 2021"]
[Site "Online"]
[Date "2021.03.27"]
[Round "6.12"]
[White "Ongut, Tamas Gunes"]
[Black "Murzin, Volodar"]
[Result "0-1"]
[ECO "E73"]
[WhiteElo "2314"]
[BlackElo "2478"]
[Annotator "ChessBase"]
[PlyCount "74"]
[EventDate "2021.03.27"]
[EventType "team-tourn"]
[EventCountry "NET"]
[SourceTitle "playchess.com"]
[Source "ChessBase"]
[SourceQuality "1"]
[TimeControl "900+5"]

1. d4 {[%emt 0:00:00]} Nf6 {[%emt 0:00:03]} 2. c4 {[%emt 0:00:02]} g6 {[%emt 0:00:02]} 3. Nc3 {[%emt 0:00:02]} Bg7 {[%emt 0:00:02]} 4. e4 {[%emt 0:00:02]} O-O {[%emt 0:00:02]} 5. Be2 {[%emt 0:00:01]} d6 {[%emt 0:00:02]} 6. Be3 {[%emt 0:00:02]} e5 {[%emt 0:00:02]} 7. d5 {[%emt 0:00:02]} a5 {[%emt 0:00:09]} 8. h4 {[%emt 0:00:03]} h5 {[%emt 0:00:06]} 9. f3 {[%emt 0:00:15]} Na6 {[%emt 0:00:05]} 10. Qc2 {[%emt 0:00:45]} Nc5 {[%emt 0:00:08]} 11. Bxc5 {[%emt 0:00:05]} dxc5 {[%emt 0:00:02]} 12. O-O-O {[%emt 0:00:38]} Bd7 {[%emt 0:00:28]} 13. Nh3 {[%emt 0:00:06]} Bh6+ {[%emt 0:01:46]} 14. Kb1 {[%emt 0:00:04]} Kg7 {[%emt 0:00:08]} 15. Nf2 {[%emt 0:00:31]} Rh8 {[%emt 0:01:00]} 16. g3 {[%emt 0:01:13]} Be3 {[%emt 0:02:17]} 17. Nd3 {[%emt 0:00:04]} Qe7 {[%emt 0:00:11]} 18. f4 {[%emt 0:01:38]} Bd4 {[%emt 0:00:39]} 19. fxe5 {[%emt 0:01:28]} Bxe5 {[%emt 0:00:04]} 20. Nxe5 {[%emt 0:00:08]} Qxe5 {[%emt 0:00:02]} 21. Rhf1 {[%emt 0:01:10]} Ne8 {[%emt 0:00:16]} 22. Rf4 {[%emt 0:01:54]} Nd6 {[%emt 0:00:04]} 23. Rdf1 {[%emt 0:00:05]} Rae8 {[%emt 0:02:08]} 24. Bd3 {[%emt 0:00:11]} Rhf8 {[%emt 0:00:15]} 25. Qf2 {[%emt 0:00:26]} b6 {[%emt 0:00:08]} 26. Qd2 {[%emt 0:00:48]} f5 {[%emt 0:02:06]} 27. exf5 {[%emt 0:00:05]} Bxf5 {[%emt 0:00:05]} 28. Bxf5 {[%emt 0:00:10]} Rxf5 {[%emt 0:00:10]} 29. Qd3 {[%emt 0:02:21]} Rxf4 {[%emt 0:00:16]} 30. Rxf4 {[%emt 0:00:13]} Qe1+ {[%emt 0:00:14]} 31. Kc2 {[%emt 0:01:39]} Re3 {[%emt 0:00:43]} 32. Qf1 {[%emt 0:00:58]} Qxg3 {[%emt 0:01:51]} 33. Rf8 {[%emt 0:00:05]} Nf5 {[%emt 0:00:09]} 34. Rxf5 {[%emt 0:00:16]} gxf5 {[%emt 0:00:03]} 35. Qxf5 {[%emt 0:00:02]} Qg6 {[%emt 0:00:03]} 36. Qxg6+ {[%emt 0:00:05]} Kxg6 {[%emt 0:00:02]} 37. Nb5 {[%emt 0:00:02]} Re7 {[%emt 0:00:03]} 0-1

[Event "European Online Club-ch-G 2021"]
[Site "Online"]
[Date "2021.03.27"]
[Round "6.13"]
[White "Dreev, Aleksey"]
[Black "Harvey, Marcus R"]
[Result "1-0"]
[ECO "E39"]
[WhiteElo "2647"]
[BlackElo "2440"]
[Annotator "ChessBase"]
[PlyCount "113"]
[EventDate "2021.03.27"]
[EventType "team-tourn"]
[EventCountry "NET"]
[SourceTitle "playchess.com"]
[Source "ChessBase"]
[SourceQuality "1"]
[TimeControl "900+5"]

1. d4 {[%emt 0:00:00]} Nf6 {[%emt 0:00:03]} 2. c4 {[%emt 0:00:08]} e6 {[%emt 0:00:01]} 3. Nc3 {[%emt 0:00:03]} Bb4 {[%emt 0:00:02]} 4. Qc2 {[%emt 0:00:02]} c5 {[%emt 0:00:05]} 5. dxc5 {[%emt 0:00:03]} O-O {[%emt 0:01:03]} 6. a3 {[%emt 0:00:06]} Bxc5 {[%emt 0:00:03]} 7. Nf3 {[%emt 0:00:01]} Qb6 {[%emt 0:00:37]} 8. e3 {[%emt 0:00:05]} Qc7 {[%emt 0:00:02]} 9. Be2 {[%emt 0:00:20]} b6 {[%emt 0:00:09]} 10. b3 {[%emt 0:00:40]} Bb7 {[%emt 0:00:04]} 11. Bb2 {[%emt 0:00:01]} h6 {[%emt 0:01:18]} 12. h4 {[%emt 0:01:08]} d5 {[%emt 0:00:03]} 13. cxd5 {[%emt 0:02:04]} Nxd5 {[%emt 0:01:57]} 14. Nxd5 {[%emt 0:01:31]} Bxd5 {[%emt 0:00:08]} 15. Qc3 {[%emt 0:00:33]} f6 {[%emt 0:01:11]} 16. b4 {[%emt 0:00:54]} Bd6 {[%emt 0:00:03]} 17. Qxc7 {[%emt 0:00:01]} Bxc7 {[%emt 0:00:00]} 18. Rc1 {[%emt 0:00:02]} Bd6 {[%emt 0:00:17]} 19. Nd4 {[%emt 0:00:22]} Be5 {[%emt 0:00:24]} 20. Bc4 {[%emt 0:01:13]} Bxc4 {[%emt 0:00:09]} 21. Rxc4 {[%emt 0:00:03]} Nd7 {[%emt 0:00:09]} 22. Ke2 {[%emt 0:00:14]} Rfc8 {[%emt 0:00:45]} 23. Rhc1 {[%emt 0:01:10]} Rxc4 {[%emt 0:00:03]} 24. Rxc4 {[%emt 0:00:02]} Kf7 {[%emt 0:00:02]} 25. f4 {[%emt 0:00:39]} Bxd4 {[%emt 0:00:08]} 26. Bxd4 {[%emt 0:00:06]} Ke7 {[%emt 0:00:34]} 27. Rc6 {[%emt 0:00:10]} h5 {[%emt 0:00:23]} 28. Kd3 {[%emt 0:00:10]} Rd8 {[%emt 0:00:56]} 29. Kc4 {[%emt 0:00:42]} Nb8 {[%emt 0:00:22]} 30. Rc7+ {[%emt 0:00:15]} Rd7 {[%emt 0:00:02]} 31. Rc8 {[%emt 0:00:02]} Rd8 {[%emt 0:00:20]} 32. Rxd8 {[%emt 0:01:14]} Kxd8 {[%emt 0:00:00]} 33. b5 {[%emt 0:00:02]} Kc7 {[%emt 0:00:25]} 34. Bc3 {[%emt 0:00:32]} Nd7 {[%emt 0:00:22]} 35. e4 {[%emt 0:00:37]} Nc5 {[%emt 0:00:17]} 36. Kd4 {[%emt 0:00:11]} g6 {[%emt 0:00:55]} 37. Bb4 {[%emt 0:00:12]} Nd7 {[%emt 0:01:14]} 38. f5 {[%emt 0:00:06]} exf5 {[%emt 0:00:08]} 39. exf5 {[%emt 0:00:03]} gxf5 {[%emt 0:00:04]} 40. Kd5 {[%emt 0:00:06]} f4 {[%emt 0:00:50]} 41. Bd6+ {[%emt 0:00:03]} Kd8 {[%emt 0:00:02]} 42. Bxf4 {[%emt 0:00:08]} Ke7 {[%emt 0:00:18]} 43. a4 {[%emt 0:00:16]} Kf7 {[%emt 0:00:34]} 44. Be3 {[%emt 0:00:39]} Ke7 {[%emt 0:00:24]} 45. Bd4 {[%emt 0:00:02]} f5 {[%emt 0:00:30]} 46. Be3 {[%emt 0:00:21]} Nf6+ {[%emt 0:00:19]} 47. Kc6 {[%emt 0:00:04]} Ke6 {[%emt 0:00:03]} 48. Kb7 {[%emt 0:00:17]} Ne4 {[%emt 0:00:48]} 49. Kxa7 {[%emt 0:00:36]} Nc3 {[%emt 0:00:03]} 50. Kxb6 {[%emt 0:00:21]} Nxa4+ {[%emt 0:00:24]} 51. Ka5 {[%emt 0:00:02]} Nb2 {[%emt 0:00:02]} 52. b6 {[%emt 0:00:13]} Nc4+ {[%emt 0:00:04]} 53. Kb5 {[%emt 0:00:11]} Nd6+ {[%emt 0:00:10]} 54. Kc6 {[%emt 0:00:03]} Nc4 {[%emt 0:00:01]} 55. Bf4 {[%emt 0:00:11]} Na5+ {[%emt 0:00:05]} 56. Kc7 {[%emt 0:00:02]} Kd5 {[%emt 0:00:01]} 57. b7 {[%emt 0:00:03]} 1-0

[Event "European Online Club-ch-G 2021"]
[Site "Online"]
[Date "2021.03.27"]
[Round "6.14"]
[White "Greet, Andrew N"]
[Black "Piorun, Kacper"]
[Result "1/2-1/2"]
[ECO "B43"]
[WhiteElo "2417"]
[BlackElo "2615"]
[Annotator "ChessBase"]
[PlyCount "175"]
[EventDate "2021.03.27"]
[EventType "team-tourn"]
[EventCountry "NET"]
[SourceTitle "playchess.com"]
[Source "ChessBase"]
[SourceQuality "1"]
[TimeControl "900+5"]

1. e4 {[%emt 0:00:00]} c5 {[%emt 0:00:03]} 2. Nc3 {[%emt 0:00:04]} a6 {[%emt 0:00:08]} 3. g3 {[%emt 0:00:05]} e6 {[%emt 0:00:11]} 4. Bg2 {[%emt 0:00:12]} b5 {[%emt 0:00:01]} 5. Nge2 {[%emt 0:00:05]} Bb7 {[%emt 0:00:03]} 6. d4 {[%emt 0:00:05]} cxd4 {[%emt 0:00:56]} 7. Nxd4 {[%emt 0:00:02]} Nc6 {[%emt 0:00:05]} 8. O-O {[%emt 0:00:41]} Nxd4 {[%emt 0:00:58]} 9. Qxd4 {[%emt 0:00:02]} Ne7 {[%emt 0:00:02]} 10. Bf4 {[%emt 0:00:57]} Ng6 {[%emt 0:01:07]} 11. Bd6 {[%emt 0:00:25]} Bxd6 {[%emt 0:00:12]} 12. Qxd6 {[%emt 0:00:02]} Qe7 {[%emt 0:00:02]} 13. Qb6 {[%emt 0:00:50]} Bc6 {[%emt 0:00:05]} 14. Nd5 {[%emt 0:00:37]} Bxd5 {[%emt 0:03:37]} 15. exd5 {[%emt 0:00:10]} Qd8 {[%emt 0:00:02]} 16. Qd6 {[%emt 0:01:44]} Qb8 {[%emt 0:00:05]} 17. Qb4 {[%emt 0:04:36]} a5 {[%emt 0:01:34]} 18. Qc5 {[%emt 0:00:03]} Ra6 {[%emt 0:01:16]} 19. dxe6 {[%emt 0:00:12]} fxe6 {[%emt 0:00:04]} 20. Rad1 {[%emt 0:00:20]} Ne5 {[%emt 0:02:46]} 21. f4 {[%emt 0:00:40]} Nf7 {[%emt 0:01:03]} 22. Kh1 {[%emt 0:00:31]} g6 {[%emt 0:00:47]} 23. Rfe1 {[%emt 0:00:07]} Rd6 {[%emt 0:01:08]} 24. Rxd6 {[%emt 0:01:13]} Nxd6 {[%emt 0:00:08]} 25. Rd1 {[%emt 0:00:19]} Nf5 {[%emt 0:00:28]} 26. Qc3 {[%emt 0:02:09]} Ke7 {[%emt 0:00:10]} 27. Qxa5 {[%emt 0:00:04]} Rc8 {[%emt 0:00:05]} 28. Qb4+ {[%emt 0:00:07]} d6 {[%emt 0:00:01]} 29. c3 {[%emt 0:00:08]} Ne3 {[%emt 0:00:05]} 30. Rc1 {[%emt 0:00:30]} Rc4 {[%emt 0:00:05]} 31. Qb3 {[%emt 0:00:05]} Qb6 {[%emt 0:00:05]} 32. Re1 {[%emt 0:00:08]} Ng4 {[%emt 0:00:03]} 33. h3 {[%emt 0:00:04]} Qf2 {[%emt 0:00:13]} 34. Qd1 {[%emt 0:00:11]} Ne3 {[%emt 0:00:03]} 35. Qe2 {[%emt 0:00:03]} Qxe2 {[%emt 0:00:07]} 36. Rxe2 {[%emt 0:00:02]} Nf5 {[%emt 0:00:02]} 37. Kh2 {[%emt 0:00:04]} Rc5 {[%emt 0:00:02]} 38. Re4 {[%emt 0:00:12]} d5 {[%emt 0:00:05]} 39. Rb4 {[%emt 0:00:03]} Ne3 {[%emt 0:00:02]} 40. a4 {[%emt 0:00:20]} bxa4 {[%emt 0:00:03]} 41. Rxa4 {[%emt 0:00:01]} Rb5 {[%emt 0:00:04]} 42. b4 {[%emt 0:00:06]} h5 {[%emt 0:00:07]} 43. Bf3 {[%emt 0:00:05]} Rb7 {[%emt 0:00:06]} 44. Be2 {[%emt 0:00:06]} Rc7 {[%emt 0:00:05]} 45. Ra3 {[%emt 0:00:03]} Nc2 {[%emt 0:00:08]} 46. Rb3 {[%emt 0:00:04]} Ne3 {[%emt 0:00:10]} 47. Kg1 {[%emt 0:00:04]} Kd6 {[%emt 0:00:02]} 48. Kf2 {[%emt 0:00:02]} Nf5 {[%emt 0:00:01]} 49. g4 {[%emt 0:00:03]} hxg4 {[%emt 0:00:04]} 50. hxg4 {[%emt 0:00:04]} Ne7 {[%emt 0:00:03]} 51. Ra3 {[%emt 0:00:03]} e5 {[%emt 0:00:16]} 52. Ra6+ {[%emt 0:00:03]} Kd7 {[%emt 0:00:01]} 53. fxe5 {[%emt 0:00:10]} Rxc3 {[%emt 0:00:02]} 54. Bb5+ {[%emt 0:00:07]} Kc7 {[%emt 0:00:05]} 55. Ra7+ {[%emt 0:00:14]} Kb6 {[%emt 0:00:01]} 56. Rxe7 {[%emt 0:00:03]} Kxb5 {[%emt 0:00:02]} 57. Rb7+ {[%emt 0:00:03]} Kc6 {[%emt 0:00:05]} 58. Rb8 {[%emt 0:00:05]} Rb3 {[%emt 0:00:09]} 59. Rg8 {[%emt 0:00:09]} Rxb4 {[%emt 0:00:03]} 60. Rxg6+ {[%emt 0:00:02]} Kd7 {[%emt 0:00:08]} 61. Rd6+ {[%emt 0:00:04]} Ke7 {[%emt 0:00:02]} 62. Kf3 {[%emt 0:00:02]} Rd4 {[%emt 0:00:02]} 63. g5 {[%emt 0:00:04]} Rd1 {[%emt 0:00:01]} 64. g6 {[%emt 0:00:05]} Rg1 {[%emt 0:00:02]} 65. Kf4 {[%emt 0:00:07]} d4 {[%emt 0:00:25]} 66. Kf5 {[%emt 0:00:03]} Rd1 {[%emt 0:00:02]} 67. g7 {[%emt 0:00:08]} Kf7 {[%emt 0:00:10]} 68. Rd7+ {[%emt 0:00:03]} Kg8 {[%emt 0:00:01]} 69. e6 {[%emt 0:00:13]} Rf1+ {[%emt 0:00:09]} 70. Ke5 {[%emt 0:00:05]} Re1+ {[%emt 0:00:02]} 71. Kd6 {[%emt 0:00:04]} d3 {[%emt 0:00:03]} 72. Ke7 {[%emt 0:00:05]} Re3 {[%emt 0:00:09]} 73. Kf6 {[%emt 0:00:03]} Rf3+ {[%emt 0:00:02]} 74. Kg6 {[%emt 0:00:02]} Rg3+ {[%emt 0:00:02]} 75. Kf5 {[%emt 0:00:04]} Re3 {[%emt 0:00:13]} 76. Kf6 {[%emt 0:00:08]} Rf3+ {[%emt 0:00:03]} 77. Ke5 {[%emt 0:00:05]} Re3+ {[%emt 0:00:03]} 78. Kf5 {[%emt 0:00:04]} d2 {[%emt 0:00:06]} 79. Rxd2 {[%emt 0:00:04]} Kxg7 {[%emt 0:00:02]} 80. Rd8 {[%emt 0:00:07]} Re1 {[%emt 0:00:06]} 81. Rd7+ {[%emt 0:00:03]} Kf8 {[%emt 0:00:03]} 82. Kf6 {[%emt 0:00:02]} Rf1+ {[%emt 0:00:02]} 83. Ke5 {[%emt 0:00:02]} Ke8 {[%emt 0:00:04]} 84. Ra7 {[%emt 0:00:03]} Re1+ {[%emt 0:00:01]} 85. Kf6 {[%emt 0:00:05]} Rf1+ {[%emt 0:00:02]} 86. Ke5 {[%emt 0:00:02]} Re1+ {[%emt 0:00:01]} 87. Kf6 {[%emt 0:00:02]} Rf1+ {[%emt 0:00:02]} 88. Ke5 {[%emt 0:00:02]} 1/2-1/2

[Event "European Online Club-ch-G 2021"]
[Site "Online"]
[Date "2021.03.27"]
[Round "6.15"]
[White "Shchekachev, Andrei"]
[Black "Sukandar, Irine Kharisma"]
[Result "0-1"]
[ECO "B36"]
[WhiteElo "2515"]
[BlackElo "2413"]
[Annotator "ChessBase"]
[PlyCount "84"]
[EventDate "2021.03.27"]
[EventType "team-tourn"]
[EventCountry "NET"]
[SourceTitle "playchess.com"]
[Source "ChessBase"]
[SourceQuality "1"]
[TimeControl "900+5"]

1. Nf3 {[%emt 0:00:00]} Nf6 {[%emt 0:00:03]} 2. c4 {[%emt 0:00:04]} c5 {[%emt 0:00:06]} 3. Nc3 {[%emt 0:00:10]} g6 {[%emt 0:00:04]} 4. e4 {[%emt 0:00:04]} Nc6 {[%emt 0:00:23]} 5. d4 {[%emt 0:00:02]} cxd4 {[%emt 0:00:04]} 6. Nxd4 {[%emt 0:00:03]} d6 {[%emt 0:00:05]} 7. f3 {[%emt 0:00:36]} Nxd4 {[%emt 0:00:06]} 8. Qxd4 {[%emt 0:00:03]} Bg7 {[%emt 0:00:01]} 9. Be3 {[%emt 0:00:03]} O-O {[%emt 0:00:01]} 10. Qd2 {[%emt 0:00:03]} Be6 {[%emt 0:00:02]} 11. Bd3 {[%emt 0:00:03]} Rc8 {[%emt 0:00:05]} 12. b3 {[%emt 0:01:52]} d5 {[%emt 0:00:41]} 13. exd5 {[%emt 0:04:11]} Nxd5 {[%emt 0:00:12]} 14. Nxd5 {[%emt 0:00:02]} Bxa1 {[%emt 0:00:06]} 15. O-O {[%emt 0:00:08]} Bg7 {[%emt 0:00:08]} 16. Be4 {[%emt 0:00:17]} b6 {[%emt 0:00:40]} 17. Bg5 {[%emt 0:01:09]} Bxd5 {[%emt 0:00:43]} 18. Bxd5 {[%emt 0:00:05]} Qd6 {[%emt 0:00:15]} 19. Rd1 {[%emt 0:00:30]} e6 {[%emt 0:00:51]} 20. Bb7 {[%emt 0:00:07]} Qxd2 {[%emt 0:00:04]} 21. Rxd2 {[%emt 0:00:02]} Rc7 {[%emt 0:00:43]} 22. Ba6 {[%emt 0:00:03]} f6 {[%emt 0:01:49]} 23. Be3 {[%emt 0:00:42]} f5 {[%emt 0:00:51]} 24. a3 {[%emt 0:00:59]} Bf6 {[%emt 0:01:36]} 25. Bb5 {[%emt 0:02:03]} Rd8 {[%emt 0:00:21]} 26. Rxd8+ {[%emt 0:00:04]} Bxd8 {[%emt 0:00:02]} 27. Bf4 {[%emt 0:00:08]} Rf7 {[%emt 0:00:07]} 28. Be8 {[%emt 0:00:24]} Rf8 {[%emt 0:00:53]} 29. Bc6 {[%emt 0:00:24]} Be7 {[%emt 0:00:13]} 30. b4 {[%emt 0:00:04]} Rd8 {[%emt 0:00:12]} 31. Kf1 {[%emt 0:00:25]} Rd3 {[%emt 0:00:12]} 32. b5 {[%emt 0:01:03]} Rxa3 {[%emt 0:00:29]} 33. Bb8 {[%emt 0:00:05]} Bc5 {[%emt 0:00:15]} 34. g4 {[%emt 0:00:16]} Kf7 {[%emt 0:00:49]} 35. Ke2 {[%emt 0:00:14]} Rc3 {[%emt 0:00:22]} 36. gxf5 {[%emt 0:00:15]} gxf5 {[%emt 0:00:04]} 37. Bxa7 {[%emt 0:00:07]} Rc2+ {[%emt 0:00:06]} 38. Kd3 {[%emt 0:00:06]} Rxh2 {[%emt 0:00:02]} 39. Bb8 {[%emt 0:00:02]} Ra2 {[%emt 0:00:16]} 40. f4 {[%emt 0:00:24]} Ra3+ {[%emt 0:00:09]} 41. Ke2 {[%emt 0:00:03]} h5 {[%emt 0:00:03]} 42. Kf1 {[%emt 0:00:13]} Rg3 {[%emt 0:00:21]} 0-1

[Event "European Online Club-ch-G 2021"]
[Site "Online"]
[Date "2021.03.27"]
[Round "6.16"]
[White "Derakhshani, Borna"]
[Black "Flom, Gabriel"]
[Result "0-1"]
[ECO "D02"]
[WhiteElo "2373"]
[BlackElo "2474"]
[Annotator "ChessBase"]
[PlyCount "58"]
[EventDate "2021.03.27"]
[EventType "team-tourn"]
[EventCountry "NET"]
[SourceTitle "playchess.com"]
[Source "ChessBase"]
[SourceQuality "1"]
[TimeControl "900+5"]

1. d4 {[%emt 0:00:00]} Nf6 {[%emt 0:00:02]} 2. Bf4 {[%emt 0:00:02]} d5 {[%emt 0:00:05]} 3. Nf3 {[%emt 0:00:02]} e6 {[%emt 0:00:01]} 4. e3 {[%emt 0:00:02]} c5 {[%emt 0:00:09]} 5. c3 {[%emt 0:00:01]} Qb6 {[%emt 0:00:08]} 6. Qb3 {[%emt 0:00:04]} c4 {[%emt 0:00:03]} 7. Qc2 {[%emt 0:00:02]} Nh5 {[%emt 0:00:06]} 8. Bg3 {[%emt 0:00:18]} Nxg3 {[%emt 0:00:14]} 9. hxg3 {[%emt 0:00:02]} g6 {[%emt 0:00:03]} 10. Nbd2 {[%emt 0:00:05]} Bg7 {[%emt 0:00:05]} 11. Be2 {[%emt 0:00:36]} Nc6 {[%emt 0:00:03]} 12. b3 {[%emt 0:00:57]} cxb3 {[%emt 0:00:02]} 13. axb3 {[%emt 0:00:01]} O-O {[%emt 0:00:07]} 14. e4 {[%emt 0:03:15]} Bd7 {[%emt 0:00:03]} 15. e5 {[%emt 0:00:09]} Rac8 {[%emt 0:00:02]} 16. Qb2 {[%emt 0:00:23]} f6 {[%emt 0:00:11]} 17. exf6 {[%emt 0:00:04]} Bxf6 {[%emt 0:00:02]} 18. O-O {[%emt 0:00:48]} e5 {[%emt 0:00:02]} 19. dxe5 {[%emt 0:00:23]} Nxe5 {[%emt 0:00:03]} 20. Rac1 {[%emt 0:00:27]} Ng4 {[%emt 0:00:27]} 21. b4 {[%emt 0:02:12]} Bb5 {[%emt 0:02:30]} 22. Bxb5 {[%emt 0:00:48]} Qxb5 {[%emt 0:00:03]} 23. Qb3 {[%emt 0:00:42]} Qd3 {[%emt 0:00:03]} 24. Nb1 {[%emt 0:00:38]} Qf5 {[%emt 0:01:34]} 25. Rcd1 {[%emt 0:00:12]} Rfd8 {[%emt 0:00:38]} 26. Rfe1 {[%emt 0:00:18]} Kh8 {[%emt 0:01:14]} 27. Re2 {[%emt 0:00:34]} Re8 {[%emt 0:04:45]} 28. Rxe8+ {[%emt 0:00:31]} Rxe8 {[%emt 0:00:02]} 29. Rxd5 {[%emt 0:00:33]} Re1+ {[%emt 0:00:08]} 0-1

[Event "European Online Club-ch-G 2021"]
[Site "Online"]
[Date "2021.03.27"]
[Round "6.17"]
[White "Bartel, Mateusz"]
[Black "Gazik, Viktor"]
[Result "0-1"]
[ECO "B04"]
[WhiteElo "2635"]
[BlackElo "2542"]
[Annotator "ChessBase"]
[PlyCount "96"]
[EventDate "2021.03.27"]
[EventType "team-tourn"]
[EventCountry "NET"]
[SourceTitle "playchess.com"]
[Source "ChessBase"]
[SourceQuality "1"]
[TimeControl "900+5"]

1. e4 {[%emt 0:00:00]} Nf6 {[%emt 0:00:02]} 2. e5 {[%emt 0:00:19]} Nd5 {[%emt 0:00:02]} 3. d4 {[%emt 0:00:03]} Nb6 {[%emt 0:00:01]} 4. a4 {[%emt 0:00:09]} a5 {[%emt 0:00:02]} 5. Nf3 {[%emt 0:00:07]} d6 {[%emt 0:00:01]} 6. Be2 {[%emt 0:00:02]} Nc6 {[%emt 0:01:30]} 7. exd6 {[%emt 0:00:37]} exd6 {[%emt 0:00:02]} 8. O-O {[%emt 0:00:28]} Be7 {[%emt 0:00:01]} 9. d5 {[%emt 0:00:05]} Nb4 {[%emt 0:00:33]} 10. c4 {[%emt 0:00:15]} O-O {[%emt 0:00:17]} 11. Be3 {[%emt 0:00:10]} Bf5 {[%emt 0:01:43]} 12. Nd4 {[%emt 0:00:14]} Bg6 {[%emt 0:00:02]} 13. f4 {[%emt 0:01:40]} Bxb1 {[%emt 0:00:10]} 14. Rxb1 {[%emt 0:00:12]} Bf6 {[%emt 0:00:09]} 15. Bf2 {[%emt 0:00:19]} Nd7 {[%emt 0:00:16]} 16. Nf5 {[%emt 0:01:38]} Re8 {[%emt 0:00:55]} 17. g4 {[%emt 0:00:08]} g6 {[%emt 0:02:27]} 18. g5 {[%emt 0:01:54]} gxf5 {[%emt 0:01:08]} 19. gxf6 {[%emt 0:00:03]} Qxf6 {[%emt 0:00:05]} 20. Bd4 {[%emt 0:00:18]} Qh4 {[%emt 0:00:17]} 21. Rf3 {[%emt 0:03:19]} Nf8 {[%emt 0:00:06]} 22. Qd2 {[%emt 0:02:02]} Ng6 {[%emt 0:00:09]} 23. Rbf1 {[%emt 0:00:02]} Re4 {[%emt 0:00:11]} 24. Bd1 {[%emt 0:00:08]} Rae8 {[%emt 0:01:31]} 25. b3 {[%emt 0:00:02]} Re1 {[%emt 0:02:47]} 26. Rg3 {[%emt 0:00:38]} Rxf1+ {[%emt 0:00:14]} 27. Kxf1 {[%emt 0:00:00]} Re4 {[%emt 0:00:13]} 28. Be3 {[%emt 0:00:03]} Kf8 {[%emt 0:00:15]} 29. Bf3 {[%emt 0:00:04]} Re8 {[%emt 0:00:02]} 30. Bd1 {[%emt 0:00:57]} b6 {[%emt 0:00:10]} 31. Kg2 {[%emt 0:00:14]} Qe7 {[%emt 0:00:13]} 32. Kh3 {[%emt 0:00:34]} Qe4 {[%emt 0:00:17]} 33. Be2 {[%emt 0:00:08]} Nc2 {[%emt 0:01:39]} 34. Bd3 {[%emt 0:00:18]} Qxe3 {[%emt 0:00:02]} 35. Rxe3 {[%emt 0:00:02]} Rxe3+ {[%emt 0:00:00]} 36. Kg2 {[%emt 0:00:05]} Nxf4+ {[%emt 0:00:02]} 37. Kg1 {[%emt 0:00:11]} Nxd3 {[%emt 0:00:04]} 38. Qc3 {[%emt 0:00:19]} Nce1 {[%emt 0:00:23]} 39. Qf6 {[%emt 0:00:08]} f4 {[%emt 0:00:08]} 40. Kf1 {[%emt 0:00:11]} Nf3 {[%emt 0:00:03]} 41. Qh8+ {[%emt 0:00:09]} Ke7 {[%emt 0:00:02]} 42. Qc8 {[%emt 0:00:02]} Nd2+ {[%emt 0:00:07]} 43. Kg2 {[%emt 0:00:05]} f3+ {[%emt 0:00:01]} 44. Kh3 {[%emt 0:00:05]} f2+ {[%emt 0:00:02]} 45. Kg4 {[%emt 0:00:02]} Ne5+ {[%emt 0:00:13]} 46. Kg5 {[%emt 0:00:03]} Ne4+ {[%emt 0:00:04]} 47. Kh6 {[%emt 0:00:01]} f1=Q {[%emt 0:00:07]} 48. Qxc7+ {[%emt 0:00:04]} Nd7 {[%emt 0:00:01]} 0-1

[Event "European Online Club-ch-G 2021"]
[Site "Online"]
[Date "2021.03.27"]
[Round "6.18"]
[White "Sahidi, Samir"]
[Black "Gumularz, Szymon"]
[Result "1/2-1/2"]
[ECO "C77"]
[WhiteElo "2407"]
[BlackElo "2517"]
[Annotator "ChessBase"]
[PlyCount "62"]
[EventDate "2021.03.27"]
[EventType "team-tourn"]
[EventCountry "NET"]
[SourceTitle "playchess.com"]
[Source "ChessBase"]
[SourceQuality "1"]
[TimeControl "900+5"]

1. e4 {[%emt 0:00:00]} e5 {[%emt 0:00:03]} 2. Nf3 {[%emt 0:00:03]} Nc6 {[%emt 0:00:03]} 3. Bb5 {[%emt 0:00:25]} a6 {[%emt 0:00:03]} 4. Ba4 {[%emt 0:00:02]} Nf6 {[%emt 0:00:02]} 5. d3 {[%emt 0:00:27]} d6 {[%emt 0:00:11]} 6. c3 {[%emt 0:00:12]} g6 {[%emt 0:00:01]} 7. O-O {[%emt 0:00:10]} Bg7 {[%emt 0:00:02]} 8. Re1 {[%emt 0:00:07]} O-O {[%emt 0:00:02]} 9. Nbd2 {[%emt 0:00:52]} b5 {[%emt 0:00:36]} 10. Bc2 {[%emt 0:00:04]} Bb7 {[%emt 0:00:07]} 11. d4 {[%emt 0:00:42]} Re8 {[%emt 0:00:18]} 12. a4 {[%emt 0:01:07]} exd4 {[%emt 0:00:12]} 13. Nxd4 {[%emt 0:00:22]} Nxd4 {[%emt 0:00:24]} 14. cxd4 {[%emt 0:00:02]} c5 {[%emt 0:00:02]} 15. d5 {[%emt 0:00:46]} Nd7 {[%emt 0:00:37]} 16. Nf3 {[%emt 0:02:05]} Nb6 {[%emt 0:02:08]} 17. Rb1 {[%emt 0:00:36]} Nxa4 {[%emt 0:00:08]} 18. Bxa4 {[%emt 0:00:06]} bxa4 {[%emt 0:00:01]} 19. Qxa4 {[%emt 0:00:13]} f5 {[%emt 0:00:22]} 20. Bg5 {[%emt 0:00:44]} Qc8 {[%emt 0:00:30]} 21. Nd2 {[%emt 0:00:28]} fxe4 {[%emt 0:03:09]} 22. Nxe4 {[%emt 0:00:24]} Bxd5 {[%emt 0:00:11]} 23. Nf6+ {[%emt 0:01:48]} Bxf6 {[%emt 0:00:04]} 24. Bxf6 {[%emt 0:00:03]} Qc6 {[%emt 0:01:09]} 25. Qxc6 {[%emt 0:00:41]} Bxc6 {[%emt 0:00:04]} 26. Be7 {[%emt 0:00:03]} Rab8 {[%emt 0:02:30]} 27. Bxd6 {[%emt 0:00:18]} Rxe1+ {[%emt 0:00:05]} 28. Rxe1 {[%emt 0:00:01]} Rxb2 {[%emt 0:00:03]} 29. Bxc5 {[%emt 0:00:11]} a5 {[%emt 0:00:14]} 30. h3 {[%emt 0:00:14]} a4 {[%emt 0:00:08]} 31. Re6 {[%emt 0:00:20]} Bd7 {[%emt 0:01:27]} 1/2-1/2